bitfinex-derivatives/quotes_SOLF0:USTF0_20241027
["timestamp","ask_amount","ask_price","bid_price","bid_amount"]
[1729987203265,1.2156,170.99,170.83,1.2468]
[1729987205259,4.19728703,170.99,170.82,2.4411]
[1729987205859,4.19728703,170.99,170.71,1.2834]
[1729987206051,4.19728703,170.99,170.71,2.5538]
[1729987206763,17.58,170.98,170.71,2.5538]
[1729987208361,17.58,170.98,170.72,6.54465332]
[1729987208566,17.58,170.98,170.73,1.46536318]
[1729987208771,17.58,170.98,170.74,6.54465332]
[1729987208965,17.58,170.98,170.75,6.54465332]
[1729987209165,17.58,170.98,170.76,6.54465332]
[1729987209364,17.58,170.98,170.77,6.54465332]
[1729987209556,17.58,170.98,170.78,6.54465332]
[1729987209865,17.58,170.98,170.79,6.54465332]
[1729987210062,17.58,170.98,170.8,6.54465332]
[1729987210261,17.58,170.98,170.81,6.54465332]
[1729987210461,17.58,170.98,170.82,1.46536318]
[1729987210663,17.58,170.98,170.83,1.46536318]
[1729987210860,17.58,170.98,170.72,1.2293]
[1729987211463,17.58,170.98,170.73,6.54387331]
[1729987211671,17.58,170.98,170.74,6.54387331]
[1729987211973,17.58,170.98,170.75,6.54387331]
[1729987212265,17.58,170.98,170.76,7.76837331]
[1729987212471,17.58,170.98,170.77,6.54387331]
[1729987212775,17.58,170.98,170.78,5.07846862]
[1729987213070,17.58,170.98,170.79,6.5438751]
[1729987213271,17.58,170.98,170.8,6.5438751]
[1729987213575,17.58,170.98,170.81,6.5438751]
[1729987213877,17.58,170.98,170.82,1.46540648]
[1729987214074,17.58,170.98,170.83,1.46540648]
[1729987214267,17.58,170.98,170.78,1.1982]
[1729987214466,17.58,170.98,170.79,6.54202125]
[1729987214666,17.58,170.98,170.8,6.54204182]
[1729987214871,17.58,170.98,170.78,1.1982]
[1729987214872,17.58,170.96,170.81,6.54204182]
[1729987215066,17.58,170.96,170.82,6.54204182]
[1729987215272,17.58,170.94,170.83,1.46536049]
[1729987215469,17.58,170.92,170.84,1.46536049]
[1729987215773,21.66,170.91,170.78,1.1982]
[1729987216085,21.66,170.91,170.79,6.54174744]
[1729987216269,21.66,170.91,170.8,6.54174744]
[1729987216569,21.66,170.91,170.81,6.54174744]
[1729987216766,21.66,170.91,170.82,6.54174744]
[1729987216966,21.66,170.91,170.83,6.54174744]
[1729987217167,21.66,170.91,170.84,1.46532736]
[1729987217371,4.08,170.91,170.78,1.1982]
[1729987217566,20.0285,170.93,170.79,6.5413401]
[1729987217769,4.08,170.92,170.8,6.5413401]
[1729987217966,4.08,170.92,170.81,6.5413401]
[1729987218162,8.0990611,170.91,170.85,8.0990611]
[1729987218570,4.08,170.9,170.88,8.0990611]
[1729987218769,4.08,170.9,170.8,4.08]
[1729987218770,1.2172,170.93,170.89,8.0990611]
[1729987218972,4.08,170.92,170.91,8.0990611]
[1729987220469,56.94,170.97,170.91,8.0990611]
[1729987220665,4.08,170.96,170.92,8.0990611]
[1729987222271,4.08,170.96,170.91,8.0990611]
[1729987223472,8.0990611,170.95,170.9,8.0990611]
[1729987223980,8.0990611,170.95,170.85,5.3803]
[1729987223981,8.0990611,170.93,170.88,8.0990611]
[1729987224179,8.0990611,170.93,170.89,1.46490313]
[1729987224180,4.06,170.92,170.89,1.46490313]
[1729987224382,4.06,170.92,170.88,8.0990611]
[1729987224578,12.1590611,170.92,170.83,4.06]
[1729987224772,12.1590611,170.92,170.86,8.0990611]
[1729987224977,12.1590611,170.92,170.87,1.46503238]
[1729987225182,12.1590611,170.92,170.86,8.0990611]
[1729987225374,12.1590611,170.92,170.87,1.46508713]
[1729987225881,12.1590611,170.92,170.86,8.0990611]
[1729987226071,12.1590611,170.92,170.87,1.46506423]
[1729987226271,12.1590611,170.92,170.86,8.0990611]
[1729987226481,12.1590611,170.92,170.87,1.46506423]
[1729987226777,12.1590611,170.92,170.86,8.0990611]
[1729987226982,12.1590611,170.92,170.87,1.46505047]
[1729987227184,12.1590611,170.92,170.86,8.0990611]
[1729987227380,8.0990611,170.91,170.87,1.46505047]
[1729987227577,8.0990611,170.88,170.83,5.07493128]
[1729987227884,4.06,170.87,170.84,1.465215]
[1729987228086,4.06,170.87,170.82,8.0990611]
[1729987228384,4.06,170.87,170.83,6.54027503]
[1729987228575,4.06,170.87,170.82,8.0990611]
[1729987228774,4.06,170.87,170.83,1.46532789]
[1729987228775,12.1590611,170.87,170.83,1.46532789]
[1729987228971,12.1590611,170.87,170.82,8.0990611]
[1729987229182,12.1590611,170.87,170.83,1.46532803]
[1729987229378,12.1590611,170.87,170.82,8.0990611]
[1729987229575,12.1590611,170.87,170.83,1.46536259]
[1729987229776,12.1590611,170.87,170.82,8.0990611]
[1729987229973,12.1590611,170.87,170.83,1.46536245]
[1729987230178,12.1590611,170.87,170.82,8.0990611]
[1729987230378,2.9299,170.85,170.83,1.4653609]
[1729987230581,2.9299,170.85,170.82,11.0292611]
[1729987230780,2.9299,170.85,170.83,1.4653609]
[1729987230983,2.9299,170.85,170.82,11.0292611]
[1729987231182,2.9299,170.85,170.83,1.46536245]
[1729987231385,2.9299,170.85,170.82,11.0292611]
[1729987231584,2.9299,170.85,170.83,1.46536245]
[1729987231784,2.9299,170.85,170.82,11.0292611]
[1729987232088,2.9299,170.85,170.83,1.46536245]
[1729987232378,2.9299,170.85,170.82,11.0292611]
[1729987232584,2.9299,170.85,170.83,1.4653418]
[1729987232780,2.9299,170.85,170.82,11.0292611]
[1729987232979,2.9299,170.85,170.83,1.4653418]
[1729987233186,2.9299,170.85,170.82,11.0292611]
[1729987233379,2.9299,170.85,170.83,1.46529155]
[1729987233685,2.9299,170.85,170.82,11.0292611]
[1729987233888,7.0099,170.85,170.83,1.46529155]
[1729987234087,7.0099,170.85,170.82,11.0292611]
[1729987234390,7.0099,170.85,170.83,1.46529154]
[1729987234589,7.0099,170.85,170.82,11.0292611]
[1729987234783,7.0099,170.85,170.83,1.4653005]
[1729987234980,7.0099,170.85,170.82,11.0292611]
[1729987235176,7.0099,170.85,170.83,1.4653005]
[1729987235381,7.0099,170.85,170.82,11.0292611]
[1729987235589,7.0099,170.85,170.83,1.46530738]
[1729987235891,7.0099,170.85,170.82,11.0292611]
[1729987236281,7.0099,170.85,170.83,1.4653005]
[1729987236491,7.0099,170.85,170.82,11.0292611]
[1729987236678,7.0099,170.85,170.83,1.4653005]
[1729987236878,7.0099,170.85,170.82,11.0292611]
[1729987237075,4.08,170.85,170.83,1.46536819]
[1729987237283,4.08,170.85,170.81,13.17272795]
[1729987237481,4.08,170.85,170.82,1.46540974]
[1729987237682,4.08,170.85,170.83,1.46540974]
[1729987237683,7.0099,170.85,170.83,1.46540974]
[1729987237976,7.0099,170.85,170.82,2.9304]
[1729987239980,7.0099,170.85,170.83,1.46537635]
[1729987240179,7.0099,170.85,170.82,2.9304]
[1729987240385,7.0099,170.85,170.83,1.46535576]
[1729987240580,7.0099,170.85,170.82,2.9304]
[1729987240987,7.0099,170.85,170.83,1.46536405]
[1729987241286,7.0099,170.85,170.82,2.9304]
[1729987241480,7.0099,170.85,170.83,1.46530303]
[1729987241676,7.0099,170.85,170.82,2.9304]
[1729987241881,7.0099,170.85,170.83,1.46530457]
[1729987242082,7.0099,170.85,170.82,2.9304]
[1729987242281,7.0099,170.85,170.83,1.46530991]
[1729987242485,7.0099,170.85,170.82,2.9304]
[1729987242790,7.0099,170.85,170.83,1.46530991]
[1729987242990,7.0099,170.85,170.82,2.9304]
[1729987243377,7.0099,170.85,170.83,1.4653116]
[1729987243579,7.0099,170.85,170.82,2.9304]
[1729987243889,7.0099,170.85,170.83,1.46530472]
[1729987244090,7.0099,170.85,170.82,2.9304]
[1729987244288,7.0099,170.85,170.83,1.46530472]
[1729987244483,7.0099,170.85,170.82,2.9304]
[1729987244789,7.0099,170.85,170.83,1.4653116]
[1729987244988,7.0099,170.85,170.82,2.9304]
[1729987245192,7.0099,170.85,170.83,1.46537188]
[1729987245396,7.0099,170.85,170.82,2.9304]
[1729987245592,7.0099,170.85,170.83,1.46537217]
[1729987245790,7.0099,170.85,170.82,2.9304]
[1729987246095,7.0099,170.85,170.83,1.46535418]
[1729987246294,7.0099,170.85,170.82,2.9304]
[1729987246492,7.0099,170.85,170.83,1.46535471]
[1729987246690,7.0099,170.85,170.82,2.9304]
[1729987247087,7.0099,170.85,170.83,1.46534464]
[1729987247288,7.0099,170.85,170.82,2.9304]
[1729987247586,7.0099,170.85,170.83,1.46531067]
[1729987247787,7.0099,170.85,170.82,2.9304]
[1729987247985,7.0099,170.85,170.83,1.46536858]
[1729987248191,7.0099,170.85,170.82,2.9304]
[1729987248583,7.0099,170.85,170.82,11.0294611]
[1729987248793,7.0099,170.85,170.8,80.14277622]
[1729987248794,8.0990611,170.88,170.84,2.93]
[1729987249089,4.08,170.87,170.84,2.93]
[1729987249285,56.92,170.95,170.86,11.0286611]
[1729987249486,8.0990611,170.92,170.87,8.0990611]
[1729987250091,4.08,170.91,170.87,8.0990611]
[1729987250300,2.9293,170.89,170.87,8.0990611]
[1729987251192,4.08,170.91,170.82,1.2936]
[1729987251193,6.9888,170.91,170.88,11.0283611]
[1729987251593,4.06,170.91,170.88,8.0990611]
[1729987251896,4.06,170.91,170.9,8.0990611]
[1729987252690,6.9888,170.91,170.9,8.0990611]
[1729987256289,4.06,170.91,170.9,8.0990611]
[1729987258902,6.9888,170.91,170.9,8.0990611]
[1729987259096,4.06,170.91,170.89,8.0990611]
[1729987259605,2.9291,170.9,170.89,8.0990611]
[1729987260398,6.9889,170.91,170.89,8.0990611]
[1729987261699,4.06,170.91,170.85,5.07208487]
[1729987261907,2.929,170.9,170.87,2.9295]
[1729987262201,2.929,170.9,170.89,8.0990611]
[1729987270705,2.9296,170.87,170.84,4.179]
[1729987270912,4.06,170.92,170.86,8.0990611]
[1729987271112,4.06,170.92,170.89,8.0990611]
[1729987272016,2.929,170.9,170.89,8.0990611]
[1729987272218,4.06,170.92,170.86,8.0990611]
[1729987272415,4.06,170.92,170.84,1.2491]
[1729987272416,8.0990611,170.91,170.84,1.2491]
[1729987272711,8.0990611,170.91,170.86,8.0990611]
[1729987273823,2.9291,170.9,170.86,8.0990611]
[1729987274023,8.0990611,170.91,170.86,8.0990611]
[1729987274822,2.9295,170.87,170.86,8.0990611]
[1729987279825,4.06,170.88,170.84,1.2491]
[1729987280032,2.9299,170.85,170.83,8.0990611]
[1729987280222,2.9299,170.85,170.84,1.46535864]
[1729987281425,12.1590611,170.88,170.82,8.0990611]
[1729987281626,2.9301,170.84,170.83,1.46549395]
[1729987281832,8.0990611,170.87,170.82,8.0990611]
[1729987282821,8.0990611,170.87,170.81,8.0990611]
[1729987283428,8.0990611,170.87,170.82,8.0990611]
[1729987284027,2.9301,170.84,170.82,8.0990611]
[1729987284233,6.9901,170.84,170.82,8.0990611]
[1729987285331,2.9291,170.9,170.85,2.9297]
[1729987285529,4.06,170.89,170.8,80.14277622]
[1729987285729,4.06,170.89,170.88,8.0990611]
[1729987287325,6.9892,170.89,170.88,8.0990611]
[1729987290843,6.9892,170.89,170.87,8.0990611]
[1729987291131,6.9892,170.89,170.85,2.9298]
[1729987291132,2.9293,170.88,170.85,2.9298]
[1729987291329,4.06,170.89,170.85,8.0990611]
[1729987291732,2.9294,170.88,170.85,8.0990611]
[1729987294028,4.06,170.89,170.8,80.14277622]
[1729987294029,2.9301,170.84,170.81,2.9304]
[1729987294232,4.06,170.85,170.82,6.54680967]
[1729987294537,4.06,170.85,170.81,8.0990611]
[1729987294839,2.9302,170.84,170.82,1.46559032]
[1729987295039,2.9302,170.84,170.81,8.0990611]
[1729987295239,2.9302,170.84,170.82,1.46558706]
[1729987295438,2.9302,170.84,170.81,11.0295611]
[1729987295638,2.9302,170.84,170.82,1.46555445]
[1729987295843,2.9302,170.84,170.81,11.0295611]
[1729987296139,2.9302,170.84,170.82,1.46554238]
[1729987296441,2.9302,170.84,170.81,11.0295611]
[1729987296641,2.9302,170.84,170.82,1.46554428]
[1729987296844,2.9302,170.84,170.81,11.0295611]
[1729987297043,2.9302,170.84,170.82,1.46554428]
[1729987297243,2.9302,170.84,170.81,11.0295611]
[1729987297445,2.9302,170.84,170.82,1.46554374]
[1729987297645,2.9302,170.84,170.81,11.0295611]
[1729987297839,2.9302,170.84,170.82,1.46554374]
[1729987298042,2.9302,170.84,170.81,11.0295611]
[1729987298243,2.9302,170.84,170.82,1.46554374]
[1729987298444,2.9302,170.84,170.81,11.0295611]
[1729987298645,2.9302,170.84,170.82,1.46555048]
[1729987299044,2.9302,170.84,170.81,11.0295611]
[1729987299246,2.9302,170.84,170.82,1.46555072]
[1729987299440,2.9302,170.84,170.81,2.9305]
[1729987299645,2.9302,170.84,170.82,1.46555102]
[1729987299846,2.9302,170.84,170.81,11.0295611]
[1729987300046,2.9302,170.84,170.82,1.46555102]
[1729987300246,2.9302,170.84,170.81,11.0295611]
[1729987301153,2.9302,170.84,170.82,1.46554023]
[1729987301346,2.9302,170.84,170.81,11.0295611]
[1729987301551,2.9302,170.84,170.82,1.46556926]
[1729987301749,2.9302,170.84,170.81,11.0295611]
[1729987302950,2.9302,170.84,170.81,2.9305]
[1729987305351,8.0990611,170.84,170.76,2.5251]
[1729987305553,8.0990611,170.84,170.78,14.64367528]
[1729987305756,8.0990611,170.84,170.79,1.46572034]
[1729987305957,8.0990611,170.84,170.8,1.46572034]
[1729987306150,8.0990611,170.84,170.78,8.0990611]
[1729987306351,8.0990611,170.84,170.79,1.46570204]
[1729987306554,8.0990611,170.84,170.8,1.46570204]
[1729987306855,8.0990611,170.84,170.78,8.0990611]
[1729987307053,8.0990611,170.84,170.79,1.46571283]
[1729987307354,2.9302,170.83,170.8,2.9307]
[1729987310454,2.9302,170.83,170.8,11.0297611]
[1729987326367,8.0990611,170.81,170.65,19.63395999]
[1729987326673,124.02,170.8,170.65,8.0990611]
[1729987326874,2.9328,170.68,170.65,8.0990611]
[1729987327074,7.3728,170.68,170.65,8.0990611]
[1729987327273,12.5390611,170.68,170.49,31.1215383]
[1729987327576,12.5390611,170.68,170.61,8.0990611]
[1729987328070,8.0990611,170.66,170.61,8.0990611]
[1729987328467,8.0990611,170.65,170.59,8.0990611]
[1729987328674,4.44,170.64,170.59,8.0990611]
[1729987329377,8.0990611,170.65,170.59,8.0990611]
[1729987329378,4.44,170.63,170.59,8.0990611]
[1729987330575,4.44,170.63,170.6,8.0990611]
[1729987332676,7.3731,170.66,170.62,8.0990611]
[1729987332869,7.3731,170.66,170.63,8.0990611]
[1729987333078,4.44,170.66,170.63,8.0990611]
[1729987336379,4.44,170.66,170.65,8.0990611]
[1729987338677,7.3731,170.66,170.65,8.0990611]
[1729987339886,2.9331,170.66,170.65,8.0990611]
[1729987342082,4.44,170.68,170.65,8.0990611]
[1729987342287,2.933,170.67,170.65,8.0990611]
[1729987352888,4.44,170.68,170.65,8.0990611]
[1729987353097,4.44,170.68,170.66,8.0990611]
[1729987354391,2.6352,170.75,170.58,2.5795]
[1729987354392,4.44,170.71,170.67,8.0990611]
[1729987355304,4.44,170.71,170.69,8.0990611]
[1729987355305,7.3724,170.71,170.69,8.0990611]
[1729987355597,4.44,170.71,170.69,8.0990611]
[1729987355793,4.44,170.71,170.69,11.0316611]
[1729987361410,2.9324,170.7,170.67,2.9329]
[1729987361707,4.44,170.71,170.69,8.0990611]
[1729987362006,7.3723,170.71,170.69,8.0990611]
[1729987368013,7.3723,170.71,170.67,11.0319611]
[1729987374511,7.3723,170.71,170.67,8.0990611]
[1729987374708,7.3723,170.71,170.68,2.9327]
[1729987375714,7.3723,170.71,170.69,8.0990611]
[1729987379622,7.3723,170.71,170.69,11.0316611]
[1729987379918,2.9323,170.71,170.69,11.0316611]
[1729987380315,2.9323,170.71,170.69,2.9326]
[1729987381522,2.9323,170.71,170.67,2.9328]
[1729987381711,2.9323,170.71,170.67,11.0318611]
[1729987381914,8.0990611,170.73,170.67,11.0318611]
[1729987383219,2.9324,170.71,170.67,11.0318611]
[1729987386620,2.9324,170.71,170.68,11.0317611]
[1729987392930,2.9324,170.71,170.68,2.9327]
[1729987393126,2.9324,170.71,170.69,8.0990611]
[1729987398429,4.34,170.72,170.7,8.0990611]
[1729987398630,7.2722,170.72,170.68,2.9326]
[1729987398830,7.2722,170.72,170.71,8.0990611]
[1729987399038,4.34,170.72,170.7,8.0990611]
[1729987399243,12.4390611,170.72,170.65,3.7444]
[1729987399433,8.0990611,170.69,170.63,8.0990611]
[1729987399630,2.9335,170.64,170.61,8.0990611]
[1729987399938,2.9335,170.64,170.61,11.0330611]
[1729987401031,2.9335,170.64,170.61,8.0990611]
[1729987402436,2.9335,170.64,170.6,2.934]
[1729987402437,2.9337,170.63,170.6,8.0990611]
[1729987405553,12.4390611,170.66,170.6,8.0990611]
[1729987405743,4.34,170.66,170.61,8.0990611]
[1729987405953,4.34,170.65,170.61,8.0990611]
[1729987406344,4.34,170.65,170.61,11.0329611]
[1729987407350,2.9335,170.64,170.61,11.0329611]
[1729987408148,2.9336,170.64,170.61,8.0990611]
[1729987409249,2.9338,170.63,170.59,2.9343]
[1729987409450,2.9338,170.63,170.6,8.0990611]
[1729987412155,12.4390611,170.65,170.6,8.0990611]
[1729987412346,2.9339,170.62,170.6,8.0990611]
[1729987415653,12.4390611,170.65,170.6,8.0990611]
[1729987415859,2.9338,170.62,170.6,8.0990611]
[1729987416257,2.934,170.61,170.58,5.4431]
[1729987416460,2.934,170.61,170.59,8.0990611]
[1729987418161,2.9338,170.63,170.6,11.0330611]
[1729987418663,2.9338,170.63,170.62,8.0990611]
[1729987421368,4.3,170.64,170.58,1.2057]
[1729987421572,2.9339,170.62,170.59,8.0990611]
[1729987428971,2.9339,170.62,170.59,11.0333611]
[1729987435976,2.9338,170.63,170.58,1.2057]
[1729987436180,12.3990611,170.64,170.58,9.3047611]
[1729987436672,2.9341,170.61,170.58,12.2391611]
[1729987439671,7.2334,170.65,170.62,2.9337]
[1729987439875,7.2334,170.65,170.62,11.0327611]
[1729987440265,2.9335,170.64,170.62,11.0327611]
[1729987440479,2.9335,170.64,170.62,8.0990611]
[1729987440779,2.9335,170.64,170.61,11.0329611]
[1729987444974,4.3,170.65,170.62,8.0990611]
[1729987445175,59.3735,170.71,170.58,1.2057]
[1729987445176,57.0,170.71,170.63,8.0990611]
[1729987445368,12.3990611,170.7,170.63,8.0990611]
[1729987445573,8.0990611,170.69,170.63,8.0990611]
[1729987445969,8.0990611,170.69,170.63,11.0326611]
[1729987445970,2.9332,170.66,170.63,11.0326611]
[1729987447677,7.2332,170.66,170.63,11.0326611]
[1729987448280,2.9332,170.66,170.63,11.0326611]
[1729987448479,7.1732,170.66,170.63,11.0326611]
[1729987449880,7.1732,170.66,170.65,8.0990611]
[1729987455889,4.24,170.66,170.65,8.0990611]
[1729987465596,8.0990611,170.71,170.65,8.0990611]
[1729987465802,2.9327,170.69,170.67,8.0990611]
[1729987466003,4.24,170.68,170.67,8.0990611]
[1729987467506,7.1727,170.69,170.67,8.0990611]
[1729987469006,7.1727,170.69,170.66,2.933]
[1729987475909,7.1727,170.69,170.68,2.9328]
[1729987475910,4.24,170.69,170.68,2.9328]
[1729987476105,4.24,170.69,170.67,8.0990611]
[1729987476518,4.24,170.69,170.67,11.0319611]
[1729987478313,7.1726,170.69,170.67,11.0319611]
[1729987479106,7.1726,170.69,170.67,8.0990611]
[1729987482320,4.24,170.69,170.68,8.0990611]
[1729987482622,4.16,170.7,170.68,8.0990611]
[1729987482823,4.16,170.71,170.69,8.0990611]
[1729987484326,7.0923,170.71,170.69,8.0990611]
[1729987488529,4.16,170.71,170.69,8.0990611]
[1729987489222,4.16,170.71,170.68,2.9326]
[1729987489527,4.16,170.71,170.69,8.0990611]
[1729987491723,8.0990611,170.74,170.67,8.0990611]
[1729987491927,4.16,170.71,170.67,8.0990611]
[1729987492331,2.9327,170.69,170.67,8.0990611]
[1729987500428,12.2590611,170.71,170.64,1.2039]
[1729987500634,8.0990611,170.69,170.64,8.0990611]
[1729987501236,2.9333,170.66,170.64,8.0990611]
[1729987502929,4.16,170.67,170.62,2.9338]
[1729987503125,4.16,170.67,170.62,8.0990611]
[1729987503430,8.0990611,170.65,170.59,11.7341611]
[1729987503637,8.0990611,170.65,170.59,10.5274611]
[1729987503929,8.0990611,170.65,170.59,9.3213611]
[1729987504235,2.9338,170.62,170.59,11.0332611]
[1729987504441,4.16,170.61,170.59,8.0990611]
[1729987504937,4.16,170.61,170.58,8.0990611]
[1729987505431,2.9342,170.6,170.58,8.0990611]
[1729987511739,2.9342,170.6,170.58,11.0335611]
[1729987512536,7.094,170.61,170.58,11.0335611]
[1729987524452,7.094,170.61,170.58,8.0990611]
[1729987524746,7.094,170.61,170.59,2.9343]
[1729987528140,2.4821,170.72,170.58,8.0990611]
[1729987528349,2.9335,170.64,170.62,8.0990611]
[1729987528544,7.0735,170.64,170.62,8.0990611]
[1729987531955,7.0735,170.64,170.61,11.0329611]
[1729987535659,4.14,170.64,170.61,8.0990611]
[1729987535850,4.14,170.64,170.61,11.0329611]
[1729987539159,2.9335,170.65,170.61,8.0990611]
[1729987539360,4.1,170.64,170.62,2.9337]
[1729987539963,4.1,170.64,170.52,7.9541]
[1729987540168,2.9339,170.62,170.59,2.9343]
[1729987541666,2.9345,170.59,170.56,2.9348]
[1729987541863,2.9345,170.59,170.52,3.8141]
[1729987541864,12.1990611,170.64,170.58,8.0990611]
[1729987542264,4.1,170.64,170.59,8.0990611]
[1729987542562,12.1990611,170.64,170.59,8.0990611]
[1729987543259,2.9342,170.61,170.59,8.0990611]
[1729987543666,8.0990611,170.63,170.57,8.0990611]
[1729987543868,8.0990611,170.61,170.52,3.8141]
[1729987544068,12.1990611,170.6,170.52,3.8141]
[1729987544260,2.9346,170.58,170.55,2.935]
[1729987544464,2.9346,170.58,170.55,11.0340611]
[1729987545063,2.9346,170.58,170.55,2.935]
[1729987545268,8.0990611,170.57,170.53,2.9352]
[1729987545469,8.0990611,170.57,170.52,11.9131611]
[1729987546073,2.9349,170.56,170.53,2.9353]
[1729987546276,4.1,170.55,170.47,4.1]
[1729987546577,2.9347,170.57,170.54,8.0990611]
[1729987546771,0.2104,170.68,170.56,8.0990611]
[1729987547077,0.2104,170.68,170.59,8.0990611]
[1729987547078,8.0990611,170.64,170.59,8.0990611]
[1729987547272,4.1,170.63,170.59,8.0990611]
[1729987547664,2.9338,170.62,170.59,8.0990611]
[1729987551480,4.1,170.63,170.59,8.0990611]
[1729987551677,4.1,170.63,170.6,11.0331611]
[1729987555875,7.0337,170.63,170.6,11.0331611]
[1729987557478,4.1,170.63,170.6,11.0331611]
[1729987559486,4.1,170.63,170.61,2.934]
[1729987559672,8.0990611,170.66,170.6,8.0990611]
[1729987559873,4.1,170.65,170.63,8.0990611]
[1729987560085,4.1,170.65,170.63,11.0325611]
[1729987564979,4.1,170.65,170.64,8.0990611]
[1729987567092,4.1,170.65,170.55,6.6607]
[1729987567287,4.1,170.65,170.61,8.0990611]
[1729987567590,2.9336,170.64,170.61,11.0329611]
[1729987568183,4.1,170.65,170.61,8.0990611]
[1729987568481,2.9336,170.64,170.61,11.0330611]
[1729987569390,4.1,170.65,170.55,6.6607]
[1729987569584,12.1990611,170.65,170.58,8.0990611]
[1729987569784,8.0990611,170.63,170.58,8.0990611]
[1729987570393,2.934,170.61,170.58,11.0334611]
[1729987570590,4.14,170.61,170.58,11.0334611]
[1729987570788,4.14,170.61,170.59,8.0990611]
[1729987572385,4.14,170.61,170.59,11.0333611]
[1729987574292,4.14,170.61,170.6,2.9342]
[1729987587599,4.14,170.61,170.58,2.9344]
[1729987587902,4.14,170.61,170.59,8.0990611]
[1729987590394,7.074,170.61,170.59,8.0990611]
[1729987593302,7.074,170.61,170.59,11.0333611]
[1729987600904,4.14,170.61,170.59,11.0333611]
[1729987610907,4.14,170.61,170.55,2.5607]
[1729987611119,2.9342,170.6,170.57,11.0336611]
[1729987611501,2.9342,170.6,170.57,8.0990611]
[1729987611706,2.9342,170.6,170.58,2.9345]
[1729987612606,6.0734,170.71,170.57,8.0990611]
[1729987612607,1.2945,170.72,170.59,12.1990611]
[1729987612812,1.2945,170.72,170.69,8.0990611]
[1729987613116,2.9323,170.71,170.69,8.0990611]
[1729987613913,4.2266,170.72,170.69,8.0990611]
[1729987615305,4.1,170.71,170.69,8.0990611]
[1729987616117,7.0323,170.71,170.69,8.0990611]
[1729987621625,7.0323,170.71,170.67,2.9329]
[1729987621626,4.1,170.71,170.61,2.4632]
[1729987621818,8.0990611,170.7,170.62,1.4671375]
[1729987622017,8.0990611,170.7,170.64,8.0990611]
[1729987623323,2.9331,170.67,170.64,8.0990611]
[1729987624224,7.0331,170.67,170.64,8.0990611]
[1729987624819,2.9325,170.7,170.67,2.9328]
[1729987625125,2.9325,170.7,170.69,8.0990611]
[1729987625716,4.1,170.71,170.69,8.0990611]
[1729987626026,7.0324,170.71,170.69,8.0990611]
[1729987630827,7.0324,170.71,170.67,11.0319611]
[1729987636537,7.0324,170.71,170.67,2.9329]
[1729987636730,4.1,170.71,170.66,8.0990611]
[1729987637530,2.9327,170.69,170.66,8.0990611]
[1729987637732,8.0990611,170.7,170.65,8.0990611]
[1729987638335,2.9331,170.67,170.65,8.0990611]
[1729987639237,8.0990611,170.7,170.65,8.0990611]
[1729987639433,8.0990611,170.7,170.61,2.4632]
[1729987639434,2.9333,170.66,170.61,2.4632]
[1729987639632,2.9333,170.66,170.63,8.0990611]
[1729987641131,2.9335,170.64,170.62,8.0990611]
[1729987644841,2.9335,170.64,170.61,5.3971]
[1729987645139,2.9335,170.64,170.62,8.0990611]
[1729987651245,2.9335,170.64,170.61,5.3971]
[1729987651546,4.16,170.63,170.51,5.8713]
[1729987651751,4.16,170.63,170.59,8.0990611]
[1729987651942,7.0937,170.63,170.6,8.0990611]
[1729987654143,7.0937,170.63,170.59,2.9342]
[1729987654449,2.9339,170.62,170.59,11.0333611]
[1729987654650,4.16,170.63,170.59,11.0333611]
[1729987655536,7.0937,170.63,170.59,11.0333611]
[1729987656939,7.0937,170.63,170.6,2.9341]
[1729987661650,2.9333,170.65,170.61,11.0328611]
[1729987661856,7.0533,170.65,170.63,8.0990611]
[1729987662247,7.0533,170.65,170.61,8.0990611]
[1729987662248,2.9337,170.63,170.61,8.0990611]
[1729987662548,8.0990611,170.64,170.54,2.5692]
[1729987662748,8.0990611,170.64,170.58,8.0990611]
[1729987663556,2.934,170.61,170.58,8.0990611]
[1729987664549,2.9342,170.6,170.57,11.0335611]